bitfinex/quotes_SOLUSD_20250904
["timestamp","ask_amount","ask_price","bid_price","bid_amount"]
[1757000373884,102.36639878,203.87,203.82,0.1]
[1757000373885,39.59559401,203.83,203.82,1e-08]
[1757000374079,81.99023661,203.83,203.82,1e-08]
[1757000374282,94.36880701,203.83,203.82,1e-08]
[1757000374581,94.36880701,203.83,203.78,0.1]
[1757000374582,39.59559401,203.79,203.78,0.1]
[1757000374783,81.99023661,203.79,203.78,0.1]
[1757000375003,79.79559401,203.79,203.78,0.1]
[1757000375190,84.67782066,203.79,203.78,0.1]
[1757000375582,113.02694675,203.79,203.78,0.1]
[1757000375904,73.54694675,203.79,203.78,0.1]
[1757000376402,73.54694675,203.79,203.78,5.32725291]
[1757000376403,24.4273651,203.79,203.78,5.32725291]
[1757000376705,24.4273651,203.79,203.78,8.24189551]
[1757000376706,24.1073651,203.79,203.78,8.24189551]
[1757000377211,24.1073651,203.79,203.78,5.32725291]
[1757000377585,24.1073651,203.79,203.78,12.61670305]
[1757000377802,24.1073651,203.79,203.78,5.32725291]
[1757000378011,24.1073651,203.79,203.78,12.61670305]
[1757000378295,24.1073651,203.79,203.78,5.32725291]
[1757000378499,24.1073651,203.79,203.78,12.61670305]
[1757000379106,24.1073651,203.79,203.78,0.1]
[1757000380193,24.1073651,203.79,203.78,7.38945014]
[1757000380402,24.1073651,203.79,203.78,5.00725291]
[1757000380705,24.1073651,203.79,203.78,12.29670305]
[1757000381092,70.85681524,203.79,203.78,0.1]
[1757000382087,24.1073651,203.79,203.78,0.1]
[1757000382296,70.85681524,203.79,203.78,0.1]
[1757000382788,24.1073651,203.79,203.78,0.1]
[1757000383096,24.1073651,203.79,203.78,12.29670305]
[1757000383781,24.1073651,203.79,203.78,5.00725291]
[1757000384013,24.1073651,203.79,203.78,7.38945014]
[1757000384693,24.1073651,203.79,203.78,0.1]
[1757000385911,24.1073651,203.79,203.78,12.29670305]
[1757000387110,24.1073651,203.79,203.78,25.89229706]
[1757000387410,39.46,203.87,203.79,13.59559401]
[1757000387615,39.46,203.87,203.84,7.28945014]
[1757000388409,7.28945014,203.91,203.85,7.28945014]
[1757000388728,0.06,203.94,203.9,7.28945014]
[1757000388897,0.06,203.94,203.93,7.28945014]
[1757000389615,0.06,203.94,203.93,24.5757514]
[1757000389803,0.06,203.94,203.93,13.59559401]
[1757000390005,0.06,203.94,203.93,24.5757514]
[1757000390209,0.06,203.94,203.93,50.5757514]
[1757000390703,0.06,203.94,203.93,55.4793948]
[1757000391317,0.06,203.94,203.93,94.9193948]
[1757000391512,0.06,204.04,203.94,13.59559401]
[1757000391813,0.06,204.04,203.96,24.5757514]
[1757000392028,0.06,204.04,203.96,64.0157514]
[1757000392325,0.06,204.04,203.96,53.03559401]
[1757000392516,0.06,204.04,203.96,64.0157514]
[1757000392899,0.06,204.04,203.96,68.91867354]
[1757000393319,0.06,204.04,203.96,29.47867354]
[1757000393739,0.06,204.04,203.96,68.91867354]
[1757000394214,0.06,204.04,203.96,29.47867354]
[1757000394415,0.06,204.04,203.96,68.91867354]
[1757000395010,0.06,204.04,203.96,29.47867354]
[1757000395315,0.06,204.04,203.96,68.91867354]
[1757000396126,0.06,204.04,203.96,68.89867354]
[1757000396531,0.06,204.04,203.96,79.87883093]
[1757000396838,0.06,204.04,203.96,78.71613628]
[1757000397129,0.06,204.04,204.03,10.98015739]
[1757000398030,0.06,204.04,204.03,15.8813974]
[1757000398533,0.77,204.04,204.03,10.98015739]
[1757000399127,0.06,204.04,204.03,10.98015739]
[1757000399632,0.06,204.04,204.03,4.54617902]
[1757000400229,0.06,204.04,204.03,9.44741903]
[1757000400609,0.06,204.04,204.03,4.54617902]
[1757000402023,0.06,204.04,204.03,9.44741903]
[1757000402739,0.06,204.04,204.03,48.84741903]
[1757000403437,0.06,204.04,204.03,9.44741903]
[1757000403632,0.06,204.04,204.03,48.84741903]
[1757000404138,0.06,204.04,204.03,9.44741903]
[1757000404318,0.06,204.04,204.03,48.84741903]
[1757000404632,0.06,204.04,204.03,44.30124001]
[1757000404814,0.06,204.04,204.03,48.84741903]
[1757000405015,0.06,204.04,204.03,9.44741903]
[1757000405346,0.77,204.04,203.95,12.25779782]
[1757000405525,0.71,204.03,203.98,4.54617902]
[1757000405715,0.71,204.02,203.98,4.54617902]
[1757000406044,4.60617902,204.04,203.98,4.54617902]
[1757000406045,0.71,204.01,203.98,4.54617902]
[1757000406227,0.71,204.0,203.98,9.44846331]
[1757000406433,0.71,204.0,203.98,4.90228429]
[1757000406618,0.71,204.0,203.98,9.44846331]
[1757000407736,4.60617902,204.04,203.98,9.44846331]
[1757000407737,0.71,203.99,203.98,4.90228429]
[1757000407920,0.06,204.04,203.98,4.90228429]
[1757000408121,0.71,204.01,203.98,9.44846331]
[1757000408516,4.60617902,204.04,203.98,9.44846331]
[1757000408721,0.71,204.03,203.98,9.44846331]
[1757000408922,0.71,204.02,203.98,9.44846331]
[1757000409153,0.71,204.01,203.98,9.44846331]
[1757000409351,0.71,204.0,203.98,9.44846331]
[1757000409837,0.71,204.0,203.97,4.93268176]
[1757000410134,0.71,204.0,203.98,4.54617902]
[1757000410335,0.71,204.02,203.99,4.54617902]
[1757000410641,0.71,204.01,203.99,4.54617902]
[1757000410834,0.06,204.04,203.99,4.54617902]
[1757000411039,0.71,204.0,203.97,4.93268176]
[1757000411336,0.71,204.0,203.98,4.54617902]
[1757000411515,0.71,203.99,203.97,4.93268176]
[1757000411718,4.54617902,204.03,203.97,9.47886078]
[1757000411931,0.71,203.99,203.98,4.54617902]
[1757000412134,0.71,204.01,203.98,4.54617902]
[1757000412349,0.71,204.0,203.98,4.54617902]
[1757000413045,0.71,204.0,203.99,9.4483801]
[1757000413243,0.06,204.04,203.99,9.4483801]
[1757000413549,0.77,204.04,204.03,4.54617902]
[1757000413843,0.06,204.04,204.03,4.54617902]
[1757000415348,0.06,204.04,204.03,9.44741903]
[1757000418557,1e-08,204.04,204.03,23.04301304]
[1757000418758,1e-08,204.04,204.03,4.90124001]
[1757000418920,1e-08,204.04,204.03,48.82741903]
[1757000420725,1e-08,204.04,204.03,9.44741903]
[1757000420925,1e-08,204.04,204.03,48.80741903]
[1757000425073,1e-08,204.04,204.03,9.44741903]
[1757000425255,1e-08,204.04,204.03,48.80741903]
[1757000426755,1e-08,204.04,204.03,9.44741903]
[1757000426959,1e-08,204.04,204.03,48.80741903]
[1757000427159,1e-08,204.04,204.03,62.40301304]
[1757000427364,1e-08,204.04,204.03,23.04301304]
[1757000427659,1e-08,204.04,204.03,62.40301304]
[1757000428245,0.69000001,204.04,204.03,4.90124001]
[1757000429341,0.69000001,204.04,204.03,9.44741903]
[1757000429750,0.69000001,204.04,204.03,4.54617902]
[1757000430038,0.69000001,204.04,204.02,4.90148024]
[1757000430241,1e-08,204.04,204.03,4.54617902]
[1757000431164,1e-08,204.04,204.03,18.14177303]
[1757000431744,1e-08,204.04,204.03,23.04301304]
[1757000432569,1e-08,204.04,204.03,62.38301304]
[1757000434652,1e-08,204.04,204.03,23.04301304]
[1757000434972,1e-08,204.04,204.03,62.38301304]
[1757000436057,1e-08,204.04,204.03,23.04301304]
[1757000436267,1e-08,204.04,204.03,62.38301304]
[1757000436774,1e-08,204.04,204.03,23.04301304]
[1757000436952,0.69000001,204.04,204.03,9.44741903]
[1757000437153,0.69000001,204.04,204.03,48.78741903]
[1757000437560,1e-08,204.04,204.03,48.78741903]
[1757000438064,1e-08,204.04,204.03,62.38301304]
[1757000439156,0.69000001,204.04,204.03,62.38301304]
[1757000439752,1e-08,204.04,204.03,62.38301304]
[1757000441348,1e-08,204.04,204.03,23.04301304]
[1757000441545,1e-08,204.04,204.03,85.00124001]
[1757000441850,0.69000001,204.04,204.03,128.86741903]
[1757000442059,1e-08,204.04,204.03,128.89741903]
[1757000442244,0.06,204.07,204.03,100.64611307]
[1757000442447,0.06,204.07,204.06,4.54617902]
[1757000442654,0.06,204.07,204.06,57.46177303]
[1757000442849,0.06,204.07,204.03,43.18434004]
[1757000443059,0.06,204.07,204.06,4.54617902]
[1757000443264,0.06,204.07,204.06,43.86617902]
[1757000443771,0.06,204.07,204.06,48.76669847]
[1757000446558,0.06,204.07,204.06,62.36229248]
[1757000449095,0.06,204.07,204.06,23.04229248]
[1757000449396,0.06,204.07,204.06,48.74669847]
[1757000449687,0.06,204.07,204.06,47.10856446]
[1757000450671,0.06,204.07,204.06,60.70415847]
[1757000452370,0.06,204.07,204.06,21.40415847]
[1757000452779,0.06,204.07,204.06,60.70415847]
[1757000455568,1e-08,204.07,204.06,86.70415847]
[1757000455769,0.06,204.11,204.09,39.59559401]
[1757000456008,0.06,204.11,204.1,53.82022505]
[1757000456191,0.72,204.11,204.1,53.82022505]
[1757000456584,0.72,204.11,204.08,39.28]
[1757000456905,0.72,204.11,204.08,4.90001177]
[1757000456906,0.66,204.1,204.08,4.90001177]
[1757000457108,0.66,204.09,204.07,47.08831273]
[1757000457275,0.66,204.08,204.07,47.08831273]
[1757000457470,0.66,204.08,204.05,4.900592]
[1757000457704,0.66,204.07,204.05,7.80863701]
[1757000457990,2.96804501,204.11,204.06,42.18804501]
[1757000458170,0.06,204.11,204.07,2.90804501]
[1757000458369,0.06,204.11,204.1,2.90804501]
[1757000458597,0.06,204.11,204.1,42.18804501]
[1757000458780,0.06,204.11,204.1,47.08760404]
[1757000458982,0.72,204.11,204.1,7.80760404]
[1757000459378,0.72,204.11,204.1,44.17955903]
[1757000459583,0.72,204.11,204.1,47.08760404]
[1757000459891,0.06,204.11,204.1,47.08760404]
[1757000460479,0.06,204.11,204.1,72.31537809]
[1757000461798,0.06,204.13,204.11,39.59559401]
[1757000461978,0.06,204.13,204.12,42.6779529]
[1757000462894,0.06,204.13,204.12,18.98458087]
[1757000463197,0.06,204.13,204.12,61.15262588]
[1757000463395,0.06,204.14,204.13,13.59559401]
[1757000463595,0.06,204.14,204.13,16.50363902]
[1757000463898,0.2,204.15,204.13,16.50363902]
[1757000464080,0.2,204.15,204.14,55.76363902]
[1757000464892,0.06,204.22,204.14,98.90873552]
[1757000465095,0.72,204.22,204.18,13.59559401]
[1757000465396,0.72,204.22,204.2,2.90804501]
[1757000465702,0.06,204.22,204.15,26.0]
[1757000465903,0.06,204.22,204.14,30.898599]
[1757000466202,0.66,204.2,204.16,2.90804501]
[1757000466385,0.66,204.19,204.16,42.16804501]
[1757000466702,0.66,204.18,204.16,42.16804501]
[1757000466905,0.66,204.17,204.16,42.16804501]
[1757000469311,0.66,204.17,204.15,2.90804501]
[1757000469516,0.66,204.16,204.14,2.90804501]
[1757000469692,0.66,204.15,204.14,42.14804501]
[1757000469893,3.56804501,204.15,204.05,12.25175849]
[1757000470209,0.66,204.14,204.09,2.90804501]
[1757000470408,0.66,204.13,204.09,2.90804501]
[1757000470618,26.0,204.17,204.11,2.90804501]
[1757000470619,0.66,204.12,204.11,2.90804501]
[1757000470790,0.66,204.15,204.11,2.90804501]
[1757000470989,0.66,204.15,204.14,2.90804501]
[1757000471208,0.66,204.15,204.14,47.04664401]
[1757000471998,0.66,204.17,204.14,47.04664401]
[1757000472202,0.66,204.17,204.16,2.90804501]
[1757000474017,0.66,204.17,204.15,44.13829054]
[1757000474218,0.66,204.17,204.16,2.90804501]
[1757000474515,4.95699556,204.21,204.16,2.90804501]
[1757000474695,4.95699556,204.21,204.17,2.90804501]
[1757000474895,0.66,204.2,204.17,2.90804501]
[1757000475097,0.66,204.19,204.17,2.90804501]
[1757000475292,0.66,204.19,204.15,39.24]
[1757000475599,0.06,204.21,204.18,28.90804501]
[1757000475795,0.06,204.21,204.2,2.90804501]
[1757000476312,0.06,204.21,204.2,14.54022505]
[1757000476717,0.06,204.21,204.18,26.0]
[1757000477014,0.06,204.21,204.2,14.54022505]
[1757000477793,0.72,204.21,204.2,2.90804501]
[1757000477993,0.72,204.21,204.2,42.14804501]
[1757000478216,0.72,204.21,204.2,47.04520465]
[1757000478401,0.72,204.21,204.18,30.89745031]
[1757000478604,0.06,204.21,204.2,2.90804501]
[1757000479213,0.72,204.21,204.2,2.90804501]
[1757000482007,0.72,204.21,204.2,7.80520465]
[1757000482520,0.72,204.21,204.2,2.90804501]
[1757000482915,0.72,204.21,204.2,7.80520465]
[1757000483303,0.06,204.21,204.2,7.80520465]
[1757000483803,0.06,204.21,204.2,18.49275365]
[1757000484006,0.06,204.21,204.2,33.0329787]
[1757000484698,0.06,204.21,204.2,21.40079866]
[1757000484905,0.06,204.21,204.2,33.0329787]
[1757000485117,0.06,204.21,204.2,18.49275365]
[1757000485425,0.06,204.21,204.2,33.0329787]
[1757000485917,0.06,204.21,204.2,72.2529787]
[1757000486121,0.06,204.21,204.2,152.3529787]
[1757000487919,0.06,204.21,204.2,98.59275365]
[1757000488123,0.06,204.21,204.15,4.89835904]
[1757000488124,0.77,204.21,204.15,4.89835904]
[1757000488307,0.71,204.2,204.16,42.12804501]
[1757000488497,0.71,204.19,204.17,2.90804501]
[1757000488701,0.71,204.19,204.18,2.90804501]
[1757000488898,0.77,204.21,204.18,42.12804501]
[1757000489103,0.71,204.2,204.15,4.89835904]
[1757000489317,0.71,204.19,204.14,4.89856659]
[1757000489624,0.71,204.18,204.15,39.22]
[1757000489813,0.71,204.17,204.15,42.12804501]
[1757000490011,2.96804501,204.21,204.15,39.22]
[1757000490215,0.71,204.16,204.14,42.12804501]
[1757000490410,0.71,204.15,204.14,44.118599]
[1757000490813,0.71,204.15,204.14,47.02664401]
[1757000491310,0.71,204.18,204.14,47.02664401]
[1757000491509,0.71,204.17,204.16,2.90804501]
[1757000491903,0.71,204.17,204.16,7.80616413]
[1757000492514,0.71,204.17,204.15,7.80637683]
[1757000492723,0.71,204.16,204.11,7.807364]
[1757000493030,0.71,204.15,204.12,2.90804501]
[1757000493331,0.71,204.19,204.14,2.90804501]
[1757000493508,0.71,204.19,204.18,2.90804501]
[1757000493933,0.06,204.21,204.17,4.89787921]
[1757000494140,0.77,204.21,204.2,2.90804501]
[1757000494428,0.71,204.2,204.19,2.90804501]
[1757000494609,0.06,204.21,204.19,2.90804501]
[1757000494809,0.77,204.21,204.17,44.09787921]
[1757000495007,0.77,204.21,204.2,2.90804501]
[1757000495227,0.71,204.2,204.17,44.09787921]
[1757000495428,0.71,204.2,204.19,2.90804501]
[1757000496131,0.71,204.2,204.19,7.80544449]
[1757000496634,0.06,204.21,204.19,7.80544449]
[1757000496830,0.06,204.21,204.2,2.90804501]
[1757000497520,0.06,204.21,204.2,14.54022505]
[1757000498138,0.06,204.21,204.2,47.00520465]
[1757000498537,0.06,204.21,204.2,7.80520465]
[1757000498865,0.77,204.21,204.18,44.09763933]
[1757000499040,0.06,204.21,204.2,2.90804501]
[1757000499241,0.06,204.21,204.18,44.09763933]
[1757000499242,0.06,204.21,204.19,2.90804501]
[1757000499562,0.06,204.21,204.2,2.90804501]
[1757000500242,0.06,204.21,204.2,7.80520465]
[1757000500452,0.77,204.21,204.2,7.80520465]
[1757000501232,0.77,204.21,204.19,2.90804501]
[1757000501538,0.77,204.21,204.18,4.89746988]
[1757000501539,0.71,204.2,204.18,4.89746988]
[1757000501757,0.71,204.19,204.18,7.80551489]
[1757000502346,0.06,204.21,204.18,7.80551489]
[1757000502645,0.06,204.21,204.18,4.89746988]
[1757000502844,0.71,204.2,204.18,4.89746988]
[1757000503647,0.71,204.2,204.19,2.90804501]
[1757000504258,0.71,204.2,204.19,7.80544449]
[1757000504963,0.06,204.21,204.19,7.80544449]
[1757000505167,0.06,204.21,204.2,42.10804501]
[1757000505962,0.06,204.21,204.2,39.2]
[1757000506161,0.06,204.21,204.2,18.98246961]
[1757000506353,0.06,204.21,204.2,33.52269466]
[1757000506553,0.06,204.21,204.2,72.72269466]
[1757000507268,0.06,204.24,204.23,13.59559401]
[1757000507449,0.06,204.24,204.23,52.79559401]
[1757000507648,0.06,204.24,204.23,55.70363902]
[1757000507954,0.06,204.24,204.23,55.68363902]
[1757000508359,0.06,204.24,204.23,60.5800793]
[1757000508742,0.06,204.25,204.24,2.90804501]
[1757000509542,0.06,204.25,204.24,4.53413117]
[1757000510560,0.06,204.25,204.24,9.43033171]
[1757000512857,0.73,204.25,204.24,9.43033171]
[1757000513084,0.06,204.25,204.24,4.53413117]
[1757000513375,0.06,204.25,204.24,57.30972518]
[1757000513585,0.73,204.25,204.24,4.53413117]
[1757000513783,0.73,204.25,204.23,9.43053374]
[1757000513967,0.67,204.24,204.23,9.43053374]
[1757000514675,0.67,204.24,204.2,4.53413117]
[1757000514879,0.67,204.23,204.2,4.53413117]
[1757000515066,0.67,204.23,204.19,18.12972518]
[1757000515260,0.67,204.22,204.19,18.12972518]
[1757000515466,0.67,204.21,204.17,4.89787921]
[1757000515784,0.67,204.2,204.18,4.53413117]
[1757000516076,4.9560957,204.25,204.17,4.89787921]
[1757000516077,0.67,204.19,204.17,9.43201038]
[1757000516286,0.06,204.25,204.18,4.53413117]
[1757000516451,0.67,204.24,204.22,4.53413117]
[1757000516647,0.67,204.23,204.21,9.43084281]
[1757000516850,0.67,204.22,204.21,4.89671164]
[1757000517372,0.06,204.25,204.22,13.59559401]
[1757000517564,0.06,204.25,204.24,4.53413117]
[1757000517767,0.06,204.25,204.24,18.12972518]
[1757000518750,0.06,204.25,204.24,23.02592572]
[1757000519576,0.06,204.25,204.24,29.44074091]
[1757000521755,0.06,204.25,204.24,109.54074091]
[1757000521955,0.73,204.25,204.24,84.99620054]
[1757000522155,0.06,204.25,204.24,95.9451469]
[1757000522374,0.06,204.25,204.24,109.54074091]
[1757000522561,0.06,204.25,204.24,149.36074091]
[1757000523074,1e-08,204.26,204.25,13.59559401]
[1757000523273,0.06,204.28,204.25,25.03413645]
[1757000523460,0.06,204.28,204.27,24.54454037]
[1757000523665,1e-08,204.28,204.27,131.13408851]
[1757000523873,1e-08,204.28,204.27,130.64454037]
[1757000524254,1e-08,204.28,204.27,135.54002184]
[1757000527660,1e-08,204.28,204.27,55.44002184]
[1757000528878,0.67000001,204.28,204.27,55.44002184]
[1757000529689,0.67000001,204.28,204.27,4.89548147]
[1757000529888,0.67000001,204.28,204.27,15.84442783]
[1757000530586,1e-08,204.28,204.27,29.44002184]
[1757000530792,1e-08,204.28,204.27,69.20002184]
[1757000531269,1e-08,204.28,204.27,84.25107548]
[1757000531591,1e-08,204.28,204.27,95.20002184]
[1757000531887,1e-08,204.28,204.27,84.25107548]
[1757000532199,1e-08,204.28,204.27,95.20002184]
[1757000532560,1e-08,204.28,204.27,84.25107548]
[1757000532795,1e-08,204.28,204.27,95.20002184]
[1757000533569,1e-08,204.28,204.27,164.35107548]
[1757000533769,0.67000001,204.28,204.27,175.30002184]
[1757000533978,1e-08,204.28,204.27,175.30002184]
[1757000538099,1e-08,204.29,204.28,13.59559401]
[1757000538293,1e-08,204.3,204.28,24.54454037]
[1757000538472,1e-08,204.3,204.29,64.18454037]
[1757000538673,1e-08,204.31,204.3,13.59559401]
[1757000538875,1e-08,204.31,204.3,24.54454037]
[1757000539072,1e-08,204.31,204.3,50.54454037]
[1757000539479,1e-08,204.31,204.3,48.65941081]
[1757000539999,1e-08,204.32,204.3,168.86888707]
[1757000540179,1e-08,204.32,204.31,23.02202543]
[1757000540507,1e-08,204.33,204.32,13.59559401]
[1757000540676,1e-08,204.33,204.32,137.88750241]
[1757000541791,1e-08,204.33,204.32,98.22750241]
[1757000541989,1e-08,204.33,204.32,137.84750241]
[1757000542186,1e-08,204.33,204.32,142.74178588]
[1757000542391,1e-08,204.33,204.32,98.58987748]
[1757000542695,1e-08,204.33,204.32,103.12178588]
[1757000542890,0.69000001,204.33,204.32,103.12178588]
[1757000543095,0.69000001,204.33,204.32,142.72178588]
[1757000543271,0.69000001,204.33,204.32,98.58987748]
[1757000543475,0.69000001,204.33,204.32,103.12178588]
[1757000543675,0.69000001,204.33,204.32,98.58987748]
[1757000543894,1e-08,204.33,204.32,142.70178588]
[1757000544482,0.69000001,204.33,204.32,142.70178588]
[1757000545099,1e-08,204.33,204.32,142.70178588]
[1757000547209,0.69000001,204.33,204.32,142.70178588]
[1757000548477,1e-08,204.33,204.32,142.70178588]
[1757000548691,0.69000001,204.33,204.32,142.70178588]
[1757000549481,1e-08,204.33,204.32,142.70178588]
[1757000550396,0.69000001,204.33,204.32,142.68178588]
[1757000550699,1e-08,204.33,204.32,138.14987748]
[1757000550891,1e-08,204.33,204.32,142.68178588]
[1757000552298,1e-08,204.33,204.32,103.12178588]
[1757000552491,0.69000001,204.33,204.32,142.66178588]
[1757000553491,0.69000001,204.33,204.32,142.62178588]
[1757000554788,1e-08,204.33,204.32,142.62178588]
[1757000556383,1e-08,204.33,204.32,146.61703977]
[1757000556587,0.06,204.36,204.32,154.85749457]
[1757000556782,0.06,204.36,204.35,23.02106737]
[1757000556983,0.06,204.36,204.35,62.50106737]
[1757000558307,0.75,204.36,204.35,67.03297577]
[1757000559015,0.75,204.36,204.35,62.50106737]
[1757000559903,0.06,204.36,204.35,62.50106737]
[1757000561810,0.75,204.36,204.35,62.48106737]
[1757000562012,0.06,204.36,204.35,62.48106737]
[1757000563210,0.06,204.36,204.35,18.48915897]
[1757000563388,0.06,204.36,204.35,57.92915897]
[1757000563589,0.75,204.36,204.35,62.46106737]
[1757000564702,0.75,204.36,204.35,23.02106737]
[1757000564910,0.75,204.36,204.35,62.44106737]
[1757000565413,0.75,204.36,204.35,57.90915897]
[1757000565589,0.75,204.36,204.35,62.44106737]
[1757000566412,0.75,204.36,204.35,44.29356496]
[1757000566616,0.75,204.36,204.34,84.99379336]
[1757000566788,0.69,204.35,204.34,84.99379336]
[1757000567522,0.69,204.35,204.34,89.52570176]
[1757000568104,0.06,204.36,204.35,13.59559401]
[1757000568311,0.75,204.36,204.35,18.12750241]
[1757000568613,0.75,204.36,204.35,57.52750241]
[1757000568823,0.06,204.36,204.35,57.52750241]
[1757000569194,0.06,204.36,204.35,142.52106737]
[1757000569597,0.06,204.36,204.35,140.88826938]
[1757000569816,0.06,204.36,204.35,142.84890952]
[1757000572011,0.75,204.36,204.35,142.84890952]
[1757000572817,0.75,204.36,204.35,103.44890952]
[1757000573017,0.75,204.36,204.35,84.99356496]
[1757000573899,0.75,204.36,204.35,80.1]
[1757000575124,0.75,204.36,204.34,4.89375107]
[1757000575319,0.66,204.35,204.34,4.89375107]
[1757000575524,0.66,204.35,204.34,7.79286148]
[1757000575918,0.66,204.35,204.32,4.92408906]
[1757000576118,0.66,204.34,204.32,0.03]
[1757000581923,0.66,204.33,204.32,0.03]
[1757000582621,0.66,204.33,204.32,2.92911041]
[1757000582822,0.66,204.35,204.32,2.92911041]
[1757000583027,0.66,204.34,204.33,2.89911041]
[1757000583406,0.66,204.34,204.32,2.92911041]
[1757000583728,0.66,204.33,204.32,2.92911041]
[1757000584405,0.66,204.33,204.32,0.03]
[1757000585733,0.66,204.33,204.32,2.92911041]
[1757000585932,0.66,204.33,204.32,0.03]
[1757000586513,0.66,204.34,204.32,2.92911041]
[1757000586729,0.66,204.34,204.33,7.79315435]
[1757000587434,0.06,204.36,204.33,7.79315435]
[1757000587634,0.06,204.36,204.35,2.89911041]
[1757000588127,0.72,204.36,204.35,2.89911041]
[1757000588927,0.72,204.36,204.35,7.79267537]
[1757000589425,0.72,204.36,204.35,2.89911041]
[1757000589626,0.72,204.36,204.33,7.79315435]
[1757000589824,0.66,204.35,204.33,7.79315435]
[1757000590027,0.66,204.35,204.34,2.89911041]
[1757000590226,0.06,204.36,204.34,2.89911041]
[1757000590415,0.66,204.35,204.34,2.89911041]
[1757000590613,0.66,204.35,204.33,7.79315435]
[1757000590837,0.66,204.34,204.32,0.03]
[1757000592736,0.66,204.33,204.32,2.92911041]
[1757000592948,0.06,204.36,204.33,13.59559401]
[1757000593119,0.06,204.36,204.35,2.89911041]
[1757000594221,0.06,204.36,204.33,13.59559401]
[1757000594542,0.06,204.36,204.35,2.89911041]
[1757000595320,0.72,204.36,204.35,2.89911041]
[1757000595527,0.72,204.36,204.34,4.89376472]
[1757000595728,0.66,204.35,204.33,7.79309393]
[1757000595936,0.66,204.34,204.33,4.89398352]
[1757000596136,0.66,204.34,204.33,7.79309393]
[1757000596340,0.66,204.34,204.33,4.89398352]
[1757000596646,0.66,204.34,204.33,7.79309393]
[1757000596938,0.66,204.34,204.32,0.03]
[1757000597141,0.66,204.33,204.32,0.03]
[1757000597347,0.66,204.33,204.32,7.82339388]
[1757000597533,0.66,204.35,204.32,7.82339388]
[1757000597731,0.06,204.36,204.32,7.82339388]
[1757000597732,0.66,204.34,204.32,7.82339388]
[1757000597934,0.66,204.33,204.32,4.92428347]
[1757000598645,0.66,204.33,204.32,7.82339388]
[1757000599052,0.72,204.36,204.32,7.82339388]
[1757000599234,0.72,204.36,204.33,2.89911041]
[1757000599433,0.06,204.36,204.35,2.89911041]
[1757000599629,0.06,204.36,204.32,4.92428347]
[1757000599820,0.06,204.36,204.35,2.89911041]
[1757000600023,0.72,204.36,204.35,2.89911041]
[1757000601149,0.72,204.36,204.35,7.79267537]
[1757000602052,0.06,204.36,204.35,7.79267537]
[1757000603039,0.06,204.36,204.35,4.89356496]
[1757000603353,0.06,204.36,204.35,7.79267537]
[1757000603354,0.75,204.36,204.35,7.79267537]
[1757000603951,0.75,204.36,204.35,4.89356496]
[1757000604260,0.06,204.36,204.35,7.79267537]
[1757000604456,0.75,204.36,204.35,4.89356496]
[1757000604634,0.75,204.36,204.35,7.79267537]
[1757000604830,0.75,204.36,204.32,85.02427794]
[1757000605031,0.69,204.35,204.34,2.89911041]
[1757000605332,0.69,204.35,204.34,7.79291485]
[1757000605756,0.69,204.35,204.34,2.89911041]
[1757000606254,0.69,204.35,204.34,7.79291485]
[1757000606445,0.06,204.36,204.34,7.79291485]
[1757000606751,0.75,204.36,204.34,7.79291485]
[1757000607336,0.69,204.35,204.34,7.79291485]
[1757000607964,0.69,204.35,204.34,2.89911041]
[1757000608157,0.69,204.35,204.33,0.03]
[1757000608547,0.69,204.34,204.33,4.92404394]
[1757000608762,0.69,204.34,204.33,7.82315435]
[1757000608942,0.75,204.36,204.33,7.82315435]
[1757000609143,0.69,204.35,204.33,7.82315435]